bitfinex/quotes_SOLUSD_20260105
["timestamp","ask_amount","ask_price","bid_price","bid_amount"]
[1767649967536,2.43345556,138.27,138.24,2.67315745]
[1767649967739,7.23118085,138.29,138.24,2.67315745]
[1767649968041,2.43345556,138.27,138.24,2.67315745]
[1767649968940,2.43345556,138.26,138.24,2.67315745]
[1767649969145,2.43345556,138.25,138.24,2.67315745]
[1767649969331,9.6663086,138.26,138.24,2.67315745]
[1767649969718,2.43345556,138.26,138.24,2.67315745]
[1767649971541,18.07795212,138.29,138.24,2.67315745]
[1767649971542,25.30913297,138.29,138.24,2.67315745]
[1767649971736,2.43345556,138.26,138.24,2.67315745]
[1767649975438,9.66630558,138.26,138.24,2.67315745]
[1767649979657,7.23285002,138.26,138.24,2.67315745]
[1767649980051,2.43345556,138.26,138.24,2.67315745]
[1767649980871,18.07974914,138.28,138.24,2.67315745]
[1767649981161,2.43345556,138.26,138.24,2.67315745]
[1767649982956,2.43345556,138.29,138.25,0.67751308]
[1767649983661,2.43345556,138.28,138.25,0.67751308]
[1767649984054,2.43345556,138.27,138.24,2.67751308]
[1767649984640,2.43345556,138.26,138.24,2.67751308]
[1767649985041,9.66631474,138.26,138.24,2.67751308]
[1767649986153,7.23285918,138.26,138.24,2.67751308]
[1767649988447,9.66631474,138.26,138.24,2.67751308]
[1767649990460,9.66631474,138.26,138.24,2.0]
[1767649990461,2.43345556,138.25,138.24,2.0]
[1767649990671,2.43345556,138.25,138.23,15.70512648]
[1767649992377,15.61345556,138.24,138.16,0.67751308]
[1767649992682,2.43345556,138.2,138.16,0.67751308]
[1767649993062,2.43345556,138.21,138.16,0.67751308]
[1767649993264,2.43345556,138.22,138.17,0.67751308]
[1767649994476,7.23536647,138.21,138.17,0.67751308]
[1767649995063,9.66882203,138.21,138.17,0.67751308]
[1767649996982,25.32040819,138.23,138.17,0.67751308]
[1767649997177,2.43345556,138.21,138.17,0.67751308]
[1767649999482,2.43345556,138.19,138.15,0.67751308]
[1767650000384,2.43345556,138.19,138.14,13.85751308]
[1767650001367,2.43345556,138.19,138.15,0.67751308]
[1767650001782,9.6699411,138.19,138.15,0.67751308]
[1767650004168,2.43345556,138.18,138.15,0.67751308]
[1767650005284,61.4917167,138.23,138.15,0.67751308]
[1767650005490,2.43345556,138.18,138.15,0.67751308]
[1767650005989,2.43345556,138.19,138.15,0.67751308]
[1767650007292,9.6699123,138.19,138.15,0.67751308]
[1767650007604,7.23645674,138.19,138.15,0.67751308]
[1767650008067,9.6699123,138.19,138.15,0.67751308]
[1767650009174,7.23645674,138.19,138.15,0.67751308]
[1767650010073,9.6699123,138.19,138.14,13.85751308]
[1767650015514,9.6699123,138.19,138.15,0.68981144]
[1767650018607,11.04593783,138.19,138.15,0.68981144]
[1767650020413,7.23645674,138.19,138.15,0.68981144]
[1767650020819,7.23589001,138.2,138.15,0.68981144]
[1767650021018,11.0453711,138.2,138.15,0.68981144]
[1767650025537,3.80948109,138.18,138.14,0.68981144]
[1767650025738,11.0453711,138.2,138.14,0.68981144]
[1767650026612,7.23589001,138.2,138.14,0.68981144]
[1767650027706,35.07836184,138.21,138.14,0.68981144]
[1767650028728,31.26888075,138.21,138.14,0.68981144]
[1767650028913,3.80948109,138.2,138.14,0.68981144]
[1767650031029,7.23641363,138.19,138.14,0.68981144]
[1767650034627,11.0453711,138.2,138.14,0.68981144]
[1767650036347,7.23589001,138.2,138.14,0.68981144]
[1767650037848,7.23502727,138.22,138.15,0.69438109]
[1767650038226,25.31867542,138.24,138.17,0.69438109]
[1767650038427,5.41010739,138.23,138.17,0.69438109]
[1767650038629,5.41010739,138.22,138.17,0.69438109]
[1767650038933,29.12815651,138.24,138.17,0.69438109]
[1767650039121,5.41010922,138.23,138.17,0.69438109]
[1767650039317,5.41010922,138.22,138.17,0.69438109]
[1767650039528,29.12815651,138.24,138.17,0.69438109]
[1767650039717,7.234843,138.22,138.17,0.69438109]
[1767650042445,7.23431961,138.23,138.17,0.69438109]
[1767650042648,5.40959304,138.22,138.17,0.69438109]
[1767650042824,7.23431961,138.23,138.17,0.69438109]
[1767650043025,5.40959304,138.22,138.17,0.69438109]
[1767650043224,7.23431961,138.23,138.17,0.69438109]
[1767650046652,7.23394267,138.24,138.19,0.65297572]
[1767650047727,13.18,138.26,138.19,0.65297572]
[1767650047937,7.23250927,138.27,138.21,0.65297572]
[1767650048234,5.40389673,138.26,138.21,0.65297572]
[1767650048440,7.23250927,138.27,138.21,0.65297572]
[1767650048641,5.40118449,138.26,138.21,0.65297572]
[1767650048840,7.23250927,138.27,138.21,0.65297572]
[1767650049044,5.40118449,138.26,138.21,0.65297572]
[1767650049250,7.23250927,138.27,138.21,0.65297572]
[1767650051630,7.23250927,138.27,138.22,0.65297572]
[1767650051835,7.23250927,138.27,138.22,0.59297572]
[1767650052335,7.29190879,138.28,138.22,0.59297572]
[1767650052538,7.29190879,138.28,138.22,13.18]
[1767650053434,0.06,138.27,138.22,20.41456995]
[1767650053835,0.06,138.27,138.23,0.65297572]
[1767650054153,103.2,138.31,138.23,0.65297572]
[1767650054154,0.06,138.31,138.23,0.65297572]
[1767650054954,0.06,138.3,138.23,0.65297572]
[1767650055259,0.06,138.3,138.25,0.65297572]
[1767650056456,7.29048177,138.31,138.25,0.65297572]
[1767650057141,7.23048177,138.31,138.26,0.65297572]
[1767650057450,7.29048177,138.31,138.26,0.65297572]
[1767650058552,7.29048177,138.31,138.26,0.59297572]
[1767650059140,0.06,138.31,138.26,7.23259006]
[1767650059349,7.54976861,138.32,138.26,7.23259006]
[1767650059548,7.54976861,138.32,138.26,20.41259006]
[1767650059955,0.2,138.33,138.26,20.41259006]
[1767650060552,0.2,138.33,138.27,0.65297572]
[1767650061255,0.2,138.34,138.32,0.65297572]
[1767650061565,0.2,138.34,138.32,0.59297572]
[1767650065769,0.2,138.34,138.32,0.53297572]
[1767650068081,0.2,138.34,138.3,20.35883284]
[1767650070065,0.2,138.34,138.31,0.65297572]
[1767650071183,7.22770792,138.36,138.33,0.72013806]
[1767650071364,7.22770792,138.36,138.33,0.66013806]
[1767650071565,7.87884083,138.36,138.33,0.66013806]
[1767650072064,7.87884083,138.36,138.33,0.60013806]
[1767650072264,7.87884083,138.36,138.33,0.54013806]
[1767650073180,0.6752657,138.35,138.33,0.54013806]
[1767650073385,0.6752657,138.35,138.3,20.41061146]
[1767650073756,7.90331947,138.35,138.3,20.41061146]
[1767650074368,7.90331947,138.35,138.31,0.72013806]
[1767650077277,0.6752657,138.35,138.31,0.72013806]
[1767650077679,7.90312831,138.36,138.31,0.72013806]
[1767650078689,0.6752657,138.35,138.31,0.72013806]
[1767650078873,7.90332962,138.35,138.31,0.72013806]
[1767650079586,7.22761226,138.36,138.32,0.72013806]
[1767650079978,0.6752657,138.35,138.31,0.72013806]
[1767650080388,0.6752657,138.35,138.3,0.72013806]
[1767650080587,0.6752657,138.34,138.3,0.72013806]
[1767650080974,7.90412257,138.34,138.3,0.72013806]
[1767650081693,0.6752657,138.33,138.3,0.72013806]
[1767650082475,0.6752657,138.36,138.3,0.72013806]
[1767650082893,0.8752657,138.37,138.3,0.72013806]
[1767650083800,8.10239832,138.37,138.31,0.72013806]
[1767650085601,8.10239832,138.37,138.31,0.66013806]
[1767650086116,8.10239832,138.37,138.31,7.16972993]
[1767650086284,0.2,138.37,138.32,13.18]
[1767650086896,0.2,138.4,138.35,0.72013806]
[1767650087801,7.42569585,138.4,138.35,0.72013806]
[1767650088892,0.6752657,138.39,138.35,0.72013806]
[1767650091013,7.90159803,138.39,138.35,0.72013806]
[1767650092895,0.16081987,138.38,138.35,0.72013806]
[1767650093294,9.81976043,138.38,138.35,0.72013806]
[1767650095699,7.38743224,138.38,138.35,0.72013806]
[1767650096202,9.81976043,138.38,138.35,0.72013806]
[1767650097419,9.81976043,138.38,138.32,0.65538931]
[1767650097420,0.16591289,138.35,138.32,0.65538931]
[1767650097921,10.35255143,138.36,138.32,0.65538931]
[1767650098709,2.57620986,138.35,138.31,0.65538931]
[1767650100118,7.22817465,138.35,138.31,0.65538931]
[1767650100903,25.43933892,138.37,138.31,0.65538931]
[1767650101103,2.43232819,138.36,138.31,0.65538931]
[1767650101921,2.43232819,138.36,138.32,0.66881468]
[1767650103827,9.65988273,138.36,138.32,0.66881468]
[1767650104216,7.22755454,138.36,138.32,0.66881468]
[1767650104720,9.6594132,138.37,138.33,0.66881468]
[1767650104908,10.36546745,138.37,138.33,0.60881468]
[1767650105831,9.6594132,138.37,138.33,0.60881468]
[1767650106010,2.62717892,138.36,138.33,0.60881468]
[1767650106703,2.43232819,138.36,138.33,0.60881468]
[1767650108506,9.65994383,138.36,138.33,0.60881468]
[1767650108706,0.19986053,138.34,138.3,0.66881468]
[1767650108931,2.63218872,138.34,138.3,13.84881468]
[1767650109133,2.63218872,138.34,138.31,0.66881468]
[1767650109631,2.63709882,138.32,138.29,0.66881468]
[1767650110032,2.43232819,138.32,138.29,0.66881468]
[1767650110208,3.13838244,138.33,138.29,0.66881468]
[1767650111630,0.70605425,138.33,138.29,0.66881468]
[1767650111816,10.36737923,138.34,138.29,0.66881468]
[1767650112020,2.43232819,138.36,138.3,0.66881468]
[1767650112718,3.13838244,138.37,138.3,0.66881468]
[1767650112916,10.36538251,138.37,138.3,0.66881468]
[1767650113236,12.62515946,138.36,138.31,0.66881468]
[1767650113429,7.22754843,138.36,138.31,0.66881468]
[1767650113738,7.93340165,138.37,138.31,0.66881468]
[1767650114035,7.41708661,138.37,138.31,0.66881468]
[1767650114218,7.41708661,138.37,138.32,13.18]
[1767650114408,7.41708661,138.37,138.33,0.66881468]
[1767650115532,9.8494148,138.37,138.33,0.66881468]
[1767650117042,0.7008911,138.36,138.33,0.66881468]
[1767650117840,0.7008911,138.36,138.32,0.66881468]
[1767650117841,10.36087191,138.36,138.32,0.66881468]
[1767650118134,0.69583069,138.34,138.3,0.66881468]
[1767650118541,3.13838244,138.35,138.3,0.66881468]
[1767650118715,0.18973921,138.34,138.3,0.66881468]
[1767650118920,0.18973921,138.34,138.29,20.41105548]
[1767650119330,0.18973921,138.34,138.3,0.66881468]
[1767650120434,9.66061139,138.35,138.3,0.66881468]
[1767650120845,9.8503506,138.35,138.3,0.66881468]
[1767650121718,0.7008911,138.34,138.3,0.66881468]
[1767650121928,10.36666564,138.35,138.3,0.66881468]
[1767650122720,2.43232819,138.34,138.3,0.66881468]
[1767650123023,2.6220674,138.34,138.3,0.66881468]
[1767650123940,9.85084325,138.34,138.3,0.66881468]
[1767650125137,7.22877585,138.34,138.3,0.66881468]
[1767650125341,2.6220674,138.33,138.28,0.66881468]
[1767650125521,2.43232819,138.31,138.28,0.66881468]
[1767650125724,2.62717892,138.31,138.28,0.66881468]
[1767650125944,2.43232819,138.3,138.27,0.66881468]
[1767650126644,3.12815888,138.3,138.27,0.66881468]
[1767650126842,2.43232819,138.28,138.25,0.66881468]
[1767650127028,10.35504665,138.28,138.25,0.66881468]
[1767650127647,2.43232819,138.27,138.24,0.66881468]
[1767650127941,2.43232819,138.26,138.24,0.66881468]
[1767650128547,2.43232819,138.26,138.23,0.66881468]
[1767650129229,2.63709882,138.27,138.23,0.66881468]
[1767650129955,2.43232819,138.27,138.23,0.66881468]
[1767650130845,7.93790172,138.28,138.23,0.66881468]
[1767650131041,2.6220674,138.27,138.23,0.66881468]
[1767650131237,0.7008911,138.26,138.22,13.18]
[1767650131636,0.7008911,138.26,138.22,20.41483894]
[1767650131830,0.7008911,138.26,138.22,13.18]
[1767650132843,0.09485073,138.24,138.2,20.4158808]
[1767650133348,0.09485073,138.23,138.2,13.18]
[1767650133548,0.06485074,138.23,138.2,13.18]
[1767650134231,0.06485074,138.23,138.19,21.1192067]
[1767650135553,0.06485074,138.23,138.19,13.18]
[1767650136136,2.49717893,138.23,138.19,13.18]
[1767650136335,7.23403081,138.24,138.2,0.70297917]
[1767650136536,2.43232819,138.23,138.2,0.70297917]
[1767650139847,2.43232819,138.22,138.2,0.70297917]
[1767650140545,7.23455541,138.23,138.2,0.70297917]
[1767650140848,3.80717397,138.22,138.2,0.70297917]
[1767650141637,7.23455541,138.23,138.2,0.70297917]
[1767650141845,3.80717397,138.22,138.2,0.70297917]
[1767650142247,3.80717397,138.21,138.2,0.70297917]
[1767650142647,3.80717397,138.21,138.19,0.70297917]
[1767650142854,3.80717397,138.2,138.17,0.70297917]
[1767650143056,3.80717397,138.18,138.16,0.1]
[1767650143455,3.80717397,138.18,138.16,0.80297917]
[1767650144646,3.80717397,138.17,138.16,0.80297917]
[1767650146567,3.77717398,138.17,138.16,0.80297917]
[1767650148167,3.80717397,138.18,138.16,0.80297917]
[1767650150663,7.30098014,138.2,138.16,0.80297917]
[1767650150860,3.80717397,138.18,138.16,0.80297917]
[1767650151970,0.06485074,138.18,138.14,0.70297917]
[1767650152170,3.80717397,138.16,138.14,0.70297917]
[1767650152469,7.23642075,138.19,138.14,0.70297917]
[1767650152470,3.80717397,138.15,138.14,0.70297917]
[1767650152867,3.80717397,138.15,138.13,0.70297917]
[1767650153164,3.80717397,138.14,138.12,7.66811839]
[1767650153344,3.80717397,138.14,138.12,0.80297917]
[1767650154152,3.80717397,138.13,138.12,0.1]
[1767650154354,3.80717397,138.13,138.12,0.80297917]
[1767650155170,3.80717397,138.13,138.12,0.1]
[1767650155477,3.80717397,138.13,138.11,0.79090175]
[1767650158396,3.80717397,138.12,138.11,0.79090175]
[1767650158698,3.80717397,138.12,138.11,0.1]
[1767650158883,3.80717397,138.12,138.1,0.79090175]
[1767650159076,3.80717397,138.11,138.1,0.79090175]
[1767650159282,3.80717397,138.11,138.08,0.79090175]
[1767650159577,3.80717397,138.09,138.08,0.79090175]
[1767650160287,3.80717397,138.09,138.08,0.1]
[1767650161897,3.80717397,138.09,138.08,0.82317216]
[1767650162089,7.30501762,138.12,138.08,0.82317216]
[1767650162274,3.80717397,138.1,138.08,0.82317216]
[1767650162474,3.80717397,138.09,138.08,0.82317216]
[1767650163698,3.80717397,138.1,138.08,0.82317216]
[1767650166887,3.80717397,138.11,138.08,0.82317216]
[1767650167799,7.30456379,138.13,138.08,0.82317216]
[1767650168013,3.80717397,138.11,138.08,0.82317216]
[1767650168301,3.80717397,138.12,138.08,0.82317216]
[1767650168503,3.80717397,138.13,138.09,0.72317216]
[1767650169086,7.23928196,138.14,138.09,0.72317216]
[1767650169317,3.80717397,138.13,138.09,0.72317216]
[1767650170505,3.80717397,138.12,138.09,0.72317216]
[1767650172595,3.80717397,138.13,138.09,0.72317216]
[1767650172918,11.04643234,138.14,138.09,0.72317216]
[1767650176299,7.3033596,138.15,138.09,0.72317216]
[1767650176507,11.04568283,138.15,138.1,0.72317216]
[1767650177312,24.29010673,138.16,138.1,0.72317216]
[1767650179919,11.11074128,138.15,138.1,0.72317216]
[1767650182215,7.30356731,138.15,138.1,0.72317216]
[1767650182417,11.11074128,138.15,138.1,0.72317216]
[1767650183419,11.04589054,138.15,138.1,0.72317216]
[1767650183730,7.23871657,138.15,138.1,0.72317216]
[1767650184518,3.80717397,138.16,138.12,0.72317216]
[1767650184723,3.87202471,138.17,138.12,0.72317216]
[1767650184900,0.06485074,138.17,138.12,0.72317216]
[1767650185320,3.80717397,138.14,138.1,0.72317216]
[1767650185519,25.39413138,138.18,138.11,0.72317216]
[1767650185733,3.80717397,138.17,138.11,0.72317216]
[1767650185900,11.10896203,138.18,138.11,0.72317216]
[1767650186102,3.87202471,138.17,138.11,0.72317216]
[1767650186609,11.10960591,138.17,138.12,0.72317216]
[1767650187208,11.10960591,138.17,138.13,0.72317216]
[1767650188922,3.87202471,138.17,138.13,0.72317216]
[1767650189125,11.04434094,138.18,138.13,0.72317216]
[1767650189305,7.23655062,138.19,138.14,0.72317216]
[1767650189509,11.10806146,138.2,138.14,0.72317216]
[1767650189723,3.87202471,138.18,138.13,0.72317216]
[1767650189901,3.80717397,138.17,138.15,0.72317216]
[1767650190105,3.87202471,138.18,138.15,0.72317216]
[1767650190702,3.80717397,138.18,138.15,0.72317216]
[1767650190902,3.87202471,138.18,138.14,13.90220791]
[1767650191105,0.06485074,138.17,138.14,13.2]
[1767650191705,0.06485074,138.17,138.14,13.90220791]
[1767650191909,0.06485074,138.18,138.14,13.90220791]
[1767650192210,0.06485074,138.18,138.15,0.70220791]
[1767650193122,11.04331509,138.2,138.15,0.70220791]
[1767650193304,11.10816583,138.2,138.15,0.70220791]
[1767650194726,7.30099186,138.2,138.15,0.70220791]
[1767650196522,0.06485074,138.19,138.14,21.1412158]
[1767650196735,0.06485074,138.19,138.15,0.70220791]
[1767650197626,7.30099186,138.2,138.15,0.70220791]
[1767650197926,7.23614112,138.2,138.15,0.70220791]
[1767650200102,7.30099186,138.2,138.15,0.70220791]
[1767650200326,11.10816583,138.2,138.16,13.88220791]
[1767650200525,7.30099186,138.2,138.16,13.88220791]
[1767650201111,7.30099186,138.2,138.17,0.70220791]
[1767650201318,7.23614112,138.2,138.17,0.70220791]
[1767650201519,0.06485074,138.23,138.17,0.70220791]
[1767650201722,7.23453057,138.23,138.17,0.70220791]
[1767650201919,25.31887798,138.24,138.18,0.70220791]
[1767650202113,25.31887798,138.24,138.2,0.70220791]
[1767650202312,25.38372872,138.24,138.2,0.70220791]
[1767650203843,7.29864703,138.24,138.2,0.70220791]
[1767650204024,7.29837691,138.25,138.2,0.70220791]
[1767650207535,7.23352617,138.25,138.2,0.70220791]
[1767650207737,7.23292774,138.26,138.21,0.70220791]
[1767650208029,0.06485074,138.26,138.21,0.70220791]
[1767650208735,9.66826126,138.27,138.21,0.70220791]
[1767650208939,7.29730674,138.27,138.21,0.70220791]
[1767650209238,7.232456,138.27,138.21,0.70220791]
[1767650209536,7.232456,138.27,138.22,0.70220791]
[1767650209733,7.29730674,138.27,138.23,13.18]
[1767650209941,0.06485074,138.26,138.23,13.12]
[1767650210237,0.06485074,138.26,138.23,13.06]
[1767650210437,7.29730674,138.27,138.23,0.70220791]
[1767650210630,7.29730674,138.27,138.24,0.70220791]
[1767650210833,7.29730674,138.27,138.24,0.64220791]
[1767650211224,7.29730674,138.27,138.23,13.18]
[1767650212140,7.29730674,138.27,138.21,7.23524189]
[1767650212340,7.29730674,138.27,138.23,13.18]
[1767650213046,0.06485074,138.27,138.23,13.88220791]
[1767650213230,0.06485074,138.27,138.24,0.70220791]
[1767650213423,0.06485074,138.27,138.24,0.64220791]
[1767650213622,0.06485074,138.27,138.24,0.58220791]
[1767650215247,0.06485074,138.27,138.23,13.18]
[1767650215543,0.44485074,138.29,138.23,20.41427716]
[1767650215732,0.099,138.28,138.24,0.71486768]
[1767650215932,0.099,138.28,138.25,13.18]
[1767650216133,0.099,138.28,138.25,13.06]
[1767650217143,0.44485074,138.29,138.25,13.77486768]
[1767650217318,0.2,138.29,138.26,0.71486768]
[1767650219948,0.2,138.29,138.26,0.65486768]
[1767650222447,0.2,138.29,138.27,13.18]
[1767650222652,0.2,138.32,138.28,0.64444697]
[1767650222855,0.30536623,138.31,138.27,13.18]
[1767650223558,0.2,138.32,138.27,13.18]
[1767650224145,0.2,138.32,138.27,20.41183111]
[1767650224359,0.2,138.32,138.27,38.49239811]
[1767650224538,0.2,138.32,138.28,0.70444697]
[1767650226354,0.2,138.32,138.28,7.9359566]
[1767650226533,0.2,138.32,138.29,0.70444697]
[1767650226732,0.2,138.32,138.3,13.18]
[1767650226939,0.2,138.32,138.3,13.06000002]
[1767650227139,0.2,138.32,138.3,13.70444699]
[1767650227542,0.2,138.32,138.3,13.00000002]
[1767650227733,0.76019223,138.32,138.3,13.00000002]
[1767650229737,0.2,138.32,138.3,13.70444699]
[1767650233461,0.2,138.32,138.3,13.64444699]
[1767650238539,0.56485074,138.36,138.32,0.70444697]
[1767650238840,0.099,138.35,138.31,7.9345641]
[1767650239042,0.099,138.35,138.3,20.87479057]
[1767650239449,0.099,138.35,138.31,0.70444697]
[1767650240138,0.10361192,138.33,138.29,13.18]
[1767650240349,0.10361192,138.33,138.29,13.88444697]
[1767650240754,0.10813206,138.31,138.24,9.58108302]
[1767650240944,3.000656,138.32,138.26,0.70444697]
[1767650241143,0.099,138.31,138.26,0.70444697]
[1767650241946,0.56019223,138.3,138.26,0.70444697]
[1767650242152,0.56019223,138.3,138.25,21.11757445]
[1767650242456,0.56019223,138.3,138.26,0.70444697]
[1767650243068,7.79498594,138.31,138.26,0.70444697]
[1767650244564,0.099,138.3,138.26,0.70444697]
[1767650245971,0.56485074,138.31,138.26,0.70444697]
[1767650246769,0.56485074,138.33,138.27,0.70444697]
[1767650246970,7.79400257,138.33,138.29,0.70444697]
[1767650252659,0.099,138.32,138.28,13.18]
[1767650252974,0.099,138.32,138.27,0.71425206]
[1767650252975,0.56019223,138.31,138.27,13.89425206]
[1767650254271,0.56485074,138.32,138.28,0.71425206]
[1767650255694,7.79490089,138.32,138.28,0.71425206]
[1767650258802,0.56019223,138.3,138.27,0.71425206]
[1767650259189,0.56485074,138.31,138.27,0.71425206]
[1767650259770,7.79500409,138.31,138.27,0.71425206]
[1767650260394,10.23080935,138.31,138.27,0.71425206]
[1767650260590,0.099,138.3,138.26,13.89425206]
[1767650261889,10.23080935,138.31,138.27,0.71425206]
[1767650262279,9.76548899,138.3,138.27,0.71425206]
[1767650262598,3.803716,138.28,138.25,13.18]
[1767650262904,3.803716,138.28,138.25,13.89425206]
[1767650263288,4.36390823,138.29,138.25,13.89425206]
[1767650265298,7.23008848,138.32,138.26,0.71425206]
[1767650265486,9.10820515,138.31,138.26,0.71425206]
[1767650265685,3.803716,138.31,138.26,0.71425206]
[1767650265888,0.56485074,138.3,138.26,0.71425206]
[1767650266700,0.099,138.29,138.24,0.71425206]
[1767650267012,3.803716,138.28,138.25,0.71425206]
[1767650267892,11.03563519,138.28,138.25,0.71425206]
[1767650270692,0.099,138.29,138.25,0.71425206]
[1767650270899,3.803716,138.28,138.25,0.71425206]
[1767650273312,11.03592788,138.28,138.25,0.71425206]
[1767650273611,3.803716,138.27,138.25,0.71425206]
[1767650274317,0.10813206,138.25,138.22,0.67182438]
[1767650274520,3.803716,138.24,138.21,13.18]
[1767650274691,3.803716,138.24,138.21,13.85182438]
[1767650275207,4.35486749,138.24,138.21,0.67182438]
[1767650275507,11.58880203,138.24,138.21,0.67182438]
[1767650276115,7.78508603,138.24,138.21,0.67182438]
[1767650276309,3.803716,138.24,138.21,0.67182438]
[1767650278119,11.60208491,138.25,138.21,0.67182438]
[1767650279636,0.099,138.24,138.2,13.85182438]
[1767650280963,0.56019223,138.26,138.21,0.69210113]
[1767650281243,3.803716,138.27,138.21,0.69210113]
[1767650281834,11.03615029,138.27,138.21,0.69210113]
[1767650282339,7.79728503,138.27,138.21,0.69210113]
[1767650282520,11.60100103,138.27,138.21,0.69210113]
[1767650282720,11.60100103,138.27,138.22,0.69210113]
[1767650283020,11.60100103,138.27,138.23,13.87210113]
[1767650283223,7.79728503,138.27,138.24,0.69210113]
[1767650283427,11.60049564,138.28,138.24,0.69210113]
[1767650283830,7.79677964,138.28,138.24,0.69210113]
[1767650285828,11.60049564,138.28,138.24,0.69210113]
[1767650288136,0.099,138.27,138.23,13.87210113]
[1767650292948,3.902716,138.27,138.23,13.87210113]
[1767650293637,11.13501983,138.27,138.23,13.87210113]
[1767650294757,3.902716,138.29,138.24,0.69210113]
[1767650295055,11.13415205,138.29,138.24,0.69210113]
[1767650297063,11.59910716,138.31,138.25,0.69210113]
[1767650297252,11.59910716,138.31,138.27,0.69210113]
[1767650297448,4.36856674,138.31,138.27,0.69210113]
[1767650298127,0.56485074,138.31,138.27,0.69210113]
[1767650298331,7.79506436,138.31,138.27,0.69210113]
[1767650298828,4.36856674,138.3,138.26,13.87210113]
[1767650299735,7.23118085,138.29,138.26,13.87210113]
[1767650300853,4.36390823,138.28,138.25,0.69210113]
[1767650302852,11.59611214,138.28,138.25,0.69210113]
[1767650303227,7.23220391,138.28,138.25,0.69210113]
[1767650304748,7.33120391,138.28,138.25,0.69210113]
[1767650304934,7.792726,138.27,138.24,13.18]
[1767650305133,7.23253377,138.27,138.24,13.87210113]
[1767650305544,0.10361192,138.26,138.24,13.18]
[1767650305853,7.33153377,138.27,138.24,13.18]
[1767650306256,7.33153377,138.27,138.23,13.87210113]
[1767650306449,7.23253377,138.27,138.24,0.69210113]
[1767650310951,11.13524977,138.27,138.23,0.67060495]
[1767650311264,7.33153377,138.27,138.23,0.67060495]
[1767650311765,7.23253377,138.27,138.23,0.67060495]
[1767650318244,7.23253377,138.27,138.24,0.67060495]
[1767650324397,0.56019223,138.26,138.21,0.67060495]
[1767650324688,2.99553007,138.26,138.22,0.67060495]
[1767650326392,10.22863846,138.26,138.22,0.67060495]
[1767650326560,7.79330062,138.26,138.22,0.67060495]
[1767650330797,7.79795913,138.26,138.21,0.67060495]
[1767650331888,0.099,138.25,138.21,0.67060495]
[1767650332088,7.23310839,138.26,138.21,0.67060495]
[1767650332481,0.099,138.25,138.21,0.67060495]
[1767650332792,7.23310839,138.26,138.21,0.67060495]
[1767650333093,0.56485074,138.25,138.21,0.67060495]
[1767650333701,0.099,138.24,138.21,0.67060495]
[1767650333920,0.099,138.24,138.2,13.88269685]
[1767650334074,7.3323372,138.25,138.21,0.70269685]
[1767650334391,7.3323372,138.25,138.2,13.18]
[1767650334392,0.56019223,138.24,138.2,0.70269685]
[1767650334599,0.10361192,138.23,138.19,13.18]
[1767650336601,7.23416178,138.24,138.2,0.70269685]
[1767650336997,7.33316178,138.24,138.2,0.70269685]
[1767650337401,3.00018858,138.26,138.2,0.70269685]
[1767650337606,0.56485074,138.26,138.21,0.70269685]
[1767650337999,3.00018858,138.27,138.21,0.70269685]
[1767650338717,10.23265817,138.27,138.21,0.70269685]
[1767650339219,7.79732033,138.27,138.22,0.70269685]
[1767650339400,7.23246959,138.27,138.22,0.70269685]
[1767650339800,7.33146959,138.27,138.22,0.70269685]
[1767650340115,7.23246959,138.27,138.22,0.70269685]
[1767650341026,7.33146959,138.27,138.22,0.70269685]
[1767650341209,7.23246959,138.27,138.22,0.70269685]
[1767650341998,7.33146959,138.27,138.22,0.70269685]
[1767650342318,9.76680743,138.27,138.22,0.70269685]
[1767650342523,2.53433784,138.27,138.22,0.70269685]
[1767650343216,0.56019223,138.26,138.22,0.70269685]
[1767650344022,2.99553007,138.26,138.22,0.70269685]
[1767650344202,2.53894976,138.25,138.21,0.6931717]
[1767650344603,7.23379629,138.24,138.21,0.6931717]
[1767650345924,7.78942272,138.24,138.21,0.6931717]
[1767650346326,10.22476056,138.24,138.21,0.6931717]
[1767650347729,2.43533784,138.23,138.2,0.6931717]
[1767650348309,0.56019223,138.22,138.19,13.18]
[1767650348712,0.56019223,138.22,138.19,13.8731717]
[1767650348948,0.56485074,138.23,138.19,13.8731717]
[1767650349541,0.099,138.23,138.19,13.8731717]
[1767650349834,10.23398487,138.24,138.2,0.6931717]
[1767650351432,0.099,138.23,138.19,0.6931717]
[1767650351830,0.099,138.23,138.18,21.11008601]
[1767650352436,0.099,138.23,138.19,0.6931717]
[1767650352734,10.23398487,138.24,138.19,0.6931717]
[1767650356840,2.53433784,138.23,138.19,0.6931717]
[1767650357140,3.14874215,138.22,138.18,8.8731717]
[1767650359050,3.14874215,138.22,138.19,0.6931717]
[1767650359719,0.63817194,138.21,138.18,8.8731717]
[1767650359921,0.60817195,138.21,138.18,8.8731717]
[1767650364243,0.60817195,138.21,138.18,9.5663434]
[1767650364447,10.38359056,138.22,138.19,0.6931717]